bitfinex/quotes_SOLUSD_20250129
["timestamp","ask_amount","ask_price","bid_price","bid_amount"]
[1738180775680,34.36964249,232.19,232.06,4.65750484]
[1738180775912,0.063,232.24,232.08,2.0]
[1738180776096,0.063,232.24,232.14,1.0]
[1738180776403,0.063,232.24,232.18,20.0]
[1738180776706,0.063,232.24,232.15,0.3481943]
[1738180776707,0.063,232.24,232.19,0.34829321]
[1738180776909,0.063,232.24,232.17,0.34826366]
[1738180777112,0.063,232.24,232.12,0.34825568]
[1738180777298,20.0,232.22,232.13,34.71837666]
[1738180777610,34.36964249,232.14,232.0,34.36964249]
[1738180777920,36.36964249,232.2,231.93,6.3253]
[1738180777921,34.36964249,232.02,231.93,6.3253]
[1738180778110,0.80840571,232.01,231.87,0.35019903]
[1738180778316,20.0,231.97,231.84,0.35040538]
[1738180778614,0.50196,231.95,231.83,6.228]
[1738180778908,20.0,231.87,231.72,6.1734]
[1738180779114,0.8090156,231.86,231.73,0.35133353]
[1738180779302,34.36964249,231.81,231.72,6.1734]
[1738180779498,0.80911634,231.8,231.72,6.1734]
[1738180779904,0.80911634,231.8,231.6,38.68724249]
[1738180779905,58.14652649,231.79,231.67,34.36964249]
[1738180780094,20.0,231.76,231.62,34.36964249]
[1738180780308,0.80926034,231.75,231.67,34.36964249]
[1738180780810,20.80926034,231.75,231.69,34.36964249]
[1738180781014,34.36964249,231.82,231.73,34.36964249]
[1738180781309,34.36964249,231.8,231.71,34.36964249]
[1738180781507,0.80917779,231.79,231.71,34.36964249]
[1738180781807,0.80917779,231.79,231.67,34.36964249]
[1738180781808,23.776884,231.75,231.67,34.36964249]
[1738180782012,34.36964249,231.7,231.61,34.36964249]
[1738180782210,0.8095107,231.69,231.62,0.35249337]
[1738180782508,0.8095107,231.69,231.63,34.36964249]
[1738180782713,1.0,231.83,231.67,0.25098]
[1738180782714,0.80936008,231.83,231.67,0.25098]
[1738180783013,34.36964249,231.76,231.62,0.35154251]
[1738180783218,34.36964249,231.72,231.63,34.36964249]
[1738180783515,0.80931766,231.71,231.63,34.36964249]
[1738180783908,20.0,231.67,231.61,34.36964249]
[1738180784107,34.36964249,231.64,231.6,6.4747]
[1738180784337,0.8096099,231.63,231.59,0.03]
[1738180784632,34.36964249,231.6,231.59,0.03]
[1738180785133,34.36964249,231.7,231.59,0.03]
[1738180785342,34.36964249,231.68,231.6,34.36964249]
[1738180785511,34.36964249,231.72,231.62,34.36964249]
[1738180785836,0.8093724,231.8,231.67,34.36964249]
[1738180786008,0.80921502,231.83,231.73,34.36964249]
[1738180786210,34.36964249,231.88,231.79,34.36964249]
[1738180786544,0.80883767,231.87,231.74,34.36964249]
[1738180786710,1.0,231.86,231.73,6.3164]
[1738180786907,0.80916627,231.85,231.74,0.25098]
[1738180787143,0.80901391,231.84,231.73,6.3164]
[1738180787340,0.50196,231.88,231.73,6.3164]
[1738180787636,34.36964249,231.79,231.73,6.3164]
[1738180787823,34.36964249,231.75,231.67,35.87104249]
[1738180788021,34.36964249,231.69,231.62,6.2274]
[1738180788211,34.36964249,231.67,231.62,6.2274]
[1738180788414,34.36964249,231.65,231.6,0.03]
[1738180788646,5.82,231.83,231.6,0.03]
[1738180788647,35.17928827,231.64,231.6,0.03]
[1738180789009,34.36964249,231.62,231.6,0.03]
[1738180789312,0.8096481,231.61,231.6,0.03]
[1738180789827,0.25098,231.71,231.6,0.03]
[1738180789828,34.36964249,231.68,231.6,0.03]
[1738180790035,34.36964249,231.66,231.6,0.03]
[1738180790227,0.80950222,231.65,231.6,0.03]
[1738180790414,34.36964249,231.66,231.6,0.03]
[1738180790613,0.80954995,231.65,231.6,0.03]
[1738180791015,34.36964249,231.68,231.6,0.38250013]
[1738180791325,1.0,231.79,231.6,0.38250013]
[1738180791326,34.36964249,231.7,231.61,34.36964249]
[1738180791529,34.36964249,231.66,231.6,0.03]
[1738180791831,0.80949336,231.71,231.63,34.36964249]
[1738180792043,0.80933189,231.73,231.65,34.36964249]
[1738180792208,34.36964249,231.78,231.67,34.36964249]
[1738180792412,0.50196,231.75,231.6,0.03]
[1738180792623,34.36964249,231.66,231.6,0.03]
[1738180792824,34.36964249,231.64,231.6,0.03]
[1738180793034,0.8095179,231.71,231.6,39.06985025]
[1738180793347,34.36964249,231.71,231.62,34.36964249]
[1738180793528,0.80941278,231.7,231.62,34.36964249]
[1738180793730,0.80941278,231.7,231.6,39.06985025]
[1738180793925,34.36964249,231.75,231.6,4.70020776]
[1738180794127,0.80924059,231.74,231.61,34.36964249]
[1738180794330,24.278844,231.73,231.6,0.03]
[1738180794529,34.36964249,231.63,231.6,0.03]
[1738180794719,0.80961314,231.62,231.6,0.03]
[1738180795048,34.36964249,231.62,231.6,0.03]
[1738180795231,0.80971046,231.61,231.6,0.03]
[1738180795446,25.08855446,231.61,231.6,0.03]
[1738180795619,0.80971046,231.61,231.6,0.03]
[1738180796245,25.08855446,231.61,231.6,0.03]
[1738180796448,60.45819695,231.61,231.6,0.03]
[1738180796615,24.58659446,231.61,231.6,0.03]
[1738180796818,58.95623695,231.61,231.6,0.03]
[1738180797027,24.58659446,231.61,231.6,0.03]
[1738180797219,0.80971046,231.61,231.6,0.03]
[1738180797636,34.36964249,231.66,231.6,0.03]
[1738180797838,0.80957945,231.65,231.6,0.03]
[1738180798835,34.36964249,231.7,231.6,0.53196]
[1738180799048,34.36964249,231.68,231.6,0.03]
[1738180799352,0.80952629,231.67,231.6,0.03]
[1738180799513,0.50196,231.76,231.6,0.38245154]
[1738180799514,34.36964249,231.7,231.6,0.38245154]
[1738180799716,0.80952966,231.76,231.68,34.36964249]
[1738180799921,0.063,231.77,231.7,34.36964249]
[1738180800145,0.063,231.77,231.68,39.06231249]
[1738180800349,34.36964249,231.72,231.69,0.35170906]
[1738180800519,0.87211854,231.77,231.69,0.35170906]
[1738180800722,34.43264249,231.77,231.69,0.35170906]
[1738180801035,0.063,231.77,231.73,34.36964249]
[1738180801442,0.809108,231.81,231.68,1.25098]
[1738180801443,35.17875049,231.81,231.71,34.36964249]
[1738180801645,34.36964249,231.77,231.68,0.6026524]
[1738180801950,0.809108,231.81,231.68,0.6026524]
[1738180801951,34.36964249,231.79,231.69,34.36964249]
[1738180802121,0.80911275,231.78,231.69,34.36964249]
[1738180802323,34.36964249,231.73,231.64,34.36964249]
[1738180802525,0.80932874,231.83,231.71,34.36964249]
[1738180802728,34.36964249,231.87,231.77,34.36964249]
[1738180802978,34.36964249,231.87,231.78,20.0]
[1738180802979,0.80904698,231.86,231.78,20.0]
[1738180803257,0.80904698,231.86,231.78,1.35116692]
[1738180803544,176.10444856,232.16,231.86,6.1862]
[1738180803545,0.80868864,231.99,231.86,6.1862]
[1738180803751,0.87146879,232.01,231.93,34.36964249]
[1738180803928,0.87146879,232.01,231.95,34.36964249]
[1738180804134,0.063,232.01,231.99,34.36964249]
[1738180804338,0.7547,232.26,231.99,34.36964249]
[1738180804339,0.80816211,232.12,232.03,20.37647]
[1738180804632,0.063,232.24,232.13,20.0]
[1738180804943,0.063,232.24,232.1,34.36964249]
[1738180804944,0.80770596,232.23,232.17,34.36964249]
[1738180805131,0.063,232.24,232.19,34.36964249]
[1738180805440,34.36964249,232.23,232.15,0.34834761]
[1738180805647,34.36964249,232.16,232.09,0.34857657]
[1738180805816,34.36964249,232.1,232.0,4.3103]
[1738180806024,0.8080875,232.09,231.99,4.65983878]
[1738180806335,0.8080442,232.19,232.06,20.50196]
[1738180806535,0.063,232.24,232.16,0.12549]
[1738180806754,0.8710442,232.29,232.21,1.0]
[1738180806755,0.063,232.29,232.21,1.0]
[1738180806930,0.063,232.29,232.25,0.25098]
[1738180807137,0.063,232.29,232.27,0.50196]
[1738180807328,20.0,232.27,232.21,34.36964249]
[1738180807653,35.17686416,232.26,232.16,0.34791532]
[1738180807853,35.17686416,232.26,232.17,34.36964249]
[1738180808024,0.80722167,232.26,232.19,34.36964249]
[1738180808221,0.063,232.29,232.25,34.36964249]
[1738180808450,0.063,232.29,232.16,5.3072]
[1738180808451,0.063,232.29,232.17,0.34783346]
[1738180808651,0.12549,232.28,232.13,0.34825638]
[1738180808953,0.37647,232.23,232.02,7.7594]
[1738180809168,0.80787127,232.22,232.04,2.0]
[1738180809373,1.0,232.25,232.05,0.34860725]
[1738180809664,1.0,232.25,232.02,12.0691]
[1738180809665,34.36964249,232.09,232.03,0.34895721]
[1738180809866,0.80799221,232.08,232.02,7.7594]
[1738180810036,35.17756046,232.07,232.02,7.7594]
[1738180810232,20.0,232.04,231.91,0.3493079]
[1738180810486,20.0,232.02,231.89,7.7186]
[1738180810639,0.80846954,232.01,231.89,7.7186]
[1738180810848,1.0,232.08,231.91,0.50196]
[1738180811047,0.80821688,232.07,231.89,7.7186]
[1738180811349,0.8082321,232.17,231.95,0.37647]
[1738180811540,0.8082321,232.17,232.08,34.36964249]
[1738180811741,34.36964249,232.22,232.14,34.36964249]
[1738180811955,34.36964249,232.17,232.09,0.34871831]
[1738180812267,2.61535303,232.26,232.09,20.34904204]
[1738180812438,1.0,232.22,232.0,0.3489052]
[1738180812640,20.0,232.13,231.95,0.34932602]
[1738180812862,0.80809302,232.12,231.99,0.50196]
[1738180813069,1.0,232.21,231.93,1.0]
[1738180813070,20.37647,232.16,232.0,0.3494359]
[1738180813260,34.36964249,232.09,231.99,34.36964249]
[1738180813449,0.80796511,232.13,232.05,34.36964249]
[1738180813655,35.1776076,232.15,232.06,0.34905932]
[1738180813977,0.37647,232.23,232.13,0.37647]
[1738180813978,34.36964249,232.22,232.13,0.37647]
[1738180814139,0.87051228,232.29,232.18,34.49513249]
[1738180814345,0.063,232.29,232.19,0.34817946]
[1738180814550,26.08622884,232.28,232.1,1.5153]
[1738180814778,23.776884,232.26,232.12,0.34878667]
[1738180814963,23.776884,232.26,232.02,1.0]
[1738180814964,0.50196,232.23,232.04,4.3095]
[1738180815147,20.0,232.24,232.04,4.3095]
[1738180815148,34.36964249,232.19,232.1,0.37647]
[1738180815352,0.80763875,232.18,232.11,34.71839196]
[1738180815573,0.80763875,232.18,231.99,30.532592]
[1738180815574,34.36964249,232.13,232.02,0.34890298]
[1738180815749,34.36964249,232.09,232.01,6.63591173]
[1738180815949,34.36964249,232.09,231.76,21.5737]
[1738180815950,23.776884,232.03,231.98,6.2865]
[1738180816176,23.776884,232.01,231.98,6.2865]
[1738180816355,0.80844328,232.0,231.9,6.5866]
[1738180816552,0.80844328,232.0,231.78,0.35021066]
[1738180816553,20.0,231.92,231.89,6.5866]
[1738180816771,0.80865512,231.91,231.8,6.3322]
[1738180817171,0.80865512,231.91,231.84,34.36964249]
[1738180817350,34.36964249,231.98,231.88,34.36964249]
[1738180817548,34.36964249,231.92,231.84,34.72010174]
[1738180817756,5.92549,232.03,231.8,6.3322]
[1738180817757,0.80869317,231.91,231.8,6.3322]
[1738180818011,0.80861209,231.99,231.83,24.278844]
[1738180818253,0.80834598,232.07,231.89,24.278844]
[1738180818464,0.12549,232.14,231.95,0.50196]
[1738180818465,0.80814793,232.11,231.95,0.50196]
[1738180818759,0.80796312,232.1,231.98,20.0]
[1738180819082,0.80809755,232.13,231.99,0.34966707]
[1738180819282,0.80809755,232.13,231.94,1.5964]
[1738180819283,34.36964249,232.09,232.02,0.37647]
[1738180819486,34.36964249,232.11,232.03,34.36964249]
[1738180819784,34.36964249,232.14,232.05,34.36964249]
[1738180819962,0.8077952,232.24,232.11,34.36964249]
[1738180820159,34.36964249,232.21,232.13,34.36964249]
[1738180820372,34.36964249,232.19,232.09,34.36964249]
[1738180820571,0.4305,232.25,232.13,34.36964249]
[1738180820753,1.30104893,232.29,232.14,0.85052982]
[1738180821080,34.36964249,232.16,232.09,0.34831774]
[1738180821263,34.36964249,232.1,232.03,0.34904263]
[1738180821585,34.36964249,232.1,232.02,6.539]
[1738180821586,34.36964249,232.07,232.02,6.539]
[1738180821799,0.4309,232.05,231.94,1.5964]
[1738180822000,0.808227,232.04,231.95,0.34992597]
[1738180822295,34.36964249,232.01,231.94,1.5964]
[1738180822496,34.36964249,232.03,231.94,1.5964]
[1738180822803,0.4309,232.05,231.91,6.3303]
[1738180822804,34.36964249,231.96,231.91,6.3303]
[1738180822974,34.36964249,231.92,231.83,34.39964249]
[1738180823178,34.36964249,231.88,231.83,0.03]
[1738180823484,34.36964249,231.84,231.83,0.03]
[1738180823671,92.89263898,231.84,231.83,0.03]
[1738180823872,92.89263898,231.84,231.71,7.9316]
[1738180823873,0.37647,231.83,231.71,6.3035]
[1738180824085,0.37647,231.83,231.75,34.36964249]
[1738180824086,0.80917202,231.83,231.75,34.36964249]
[1738180824275,34.36964249,231.81,231.73,34.36964249]
[1738180824478,35.17870901,231.83,231.73,34.36964249]
[1738180824688,34.36964249,231.77,231.71,6.3035]
[1738180824911,0.37647,231.82,231.64,34.72113046]
[1738180824912,34.36964249,231.74,231.64,34.72113046]
[1738180825085,1.1857637,231.82,231.65,0.35205937]
[1738180825404,0.80920064,231.9,231.74,0.50196]
[1738180825614,0.80870526,231.95,231.78,24.278844]
[1738180825903,20.0,231.94,231.81,4.3138]
[1738180826108,20.0,231.9,231.68,1.0]
[1738180826403,34.36964249,231.77,231.67,0.35132031]
[1738180826571,34.36964249,231.73,231.64,34.36964249]
[1738180826781,34.36964249,231.8,231.71,0.50196]
[1738180827006,34.36964249,231.84,231.75,0.37647]
[1738180827293,0.4311,231.95,231.84,20.0]
[1738180827294,0.80875102,231.95,231.84,20.0]
[1738180827507,0.4309,232.05,231.85,0.35034372]
[1738180827673,0.80860617,232.04,231.86,0.35033564]
[1738180828012,0.80860617,232.04,231.92,0.12549]
[1738180828207,30.0,232.27,231.92,0.12549]
[1738180828208,34.36964249,232.11,232.01,34.36964249]
[1738180828375,34.36964249,232.2,232.03,34.36964249]
[1738180828376,0.80798274,232.1,232.03,34.36964249]
[1738180828696,34.36964249,232.05,231.94,0.34943861]
[1738180828903,1.0,232.12,231.83,6.0281]
[1738180828904,0.80833495,232.04,231.95,0.34995398]
[1738180829116,24.278844,232.13,231.95,0.34995398]
[1738180829322,0.12549,232.06,231.88,1.88661209]
[1738180829492,20.0,232.0,231.88,1.5367]
[1738180829817,20.0,232.0,231.83,10.69191118]
[1738180829818,0.80852074,231.99,231.83,10.69191118]
[1738180830126,0.80856757,231.98,231.83,6.0281]
[1738180830308,34.36964249,231.89,231.83,10.3414]
[1738180830624,34.36964249,231.89,231.83,6.0281]
[1738180830828,34.36964249,231.85,231.76,1.6526]
[1738180831123,34.36964249,231.83,231.76,21.6526]
[1738180831418,34.36964249,231.89,231.79,34.36964249]
[1738180831619,20.0,231.87,231.76,1.6526]
[1738180831922,44.208284,231.8,231.63,1.6049]
[1738180832131,20.0,231.75,231.63,1.6049]
[1738180832294,20.0,231.75,231.63,6.27393831]
[1738180832618,0.80916643,231.74,231.63,1.6049]
[1738180832822,34.36964249,231.66,231.62,6.4519]
[1738180833116,34.36964249,231.72,231.6,0.03]
[1738180833117,34.36964249,231.64,231.6,0.03]
[1738180833325,34.36964249,231.61,231.6,0.03]
[1738180833534,35.17939492,231.61,231.6,0.03]
[1738180834031,0.80976579,231.71,231.62,20.0]
[1738180834327,34.36964249,231.79,231.69,34.36964249]
[1738180834539,0.80927247,231.83,231.6,0.03]
[1738180834540,20.0,231.68,231.6,0.38190491]
[1738180834824,20.0,231.68,231.6,0.03]
[1738180834825,0.8095365,231.67,231.6,0.03]
[1738180835031,0.80955916,231.66,231.6,0.03]
[1738180835212,43.776884,231.64,231.6,0.03]
[1738180835522,20.0,231.64,231.6,0.03]
[1738180835711,34.36964249,231.61,231.6,0.03]
[1738180836100,34.36964249,231.63,231.6,0.03]
[1738180836300,34.36964249,231.61,231.6,0.03]
[1738180837232,34.36964249,231.61,231.53,0.03]
[1738180837233,20.0,231.54,231.53,0.03]
[1738180837520,78.95664335,231.54,231.53,0.03]
[1738180837902,55.17975935,231.54,231.53,0.03]
[1738180838101,34.36964249,231.58,231.53,0.03]
[1738180838300,0.80974846,231.57,231.53,0.03]
[1738180838621,34.36964249,231.58,231.53,0.03]
[1738180839038,34.36964249,231.62,231.53,0.03]
[1738180839328,0.80956434,231.7,231.63,20.0]
[1738180839535,34.36964249,231.78,231.68,34.36964249]
[1738180839695,0.80929745,231.81,231.66,0.37647]
[1738180839696,34.36964249,231.75,231.66,0.35187125]
[1738180839895,0.8092398,231.74,231.51,21.35195157]
[1738180840128,1.0,231.79,231.61,4.3176]
[1738180840129,0.8094066,231.73,231.61,4.3176]
[1738180840310,0.80954098,231.72,231.62,0.35222972]
[1738180840515,0.37647,231.77,231.59,5.9675]
[1738180840516,0.8093218,231.71,231.59,5.9675]
[1738180840814,20.0,231.63,231.54,4.3189]
[1738180841020,34.36964249,231.58,231.53,0.03]
[1738180841222,34.36964249,231.56,231.53,0.03]
[1738180841721,34.36964249,231.54,231.53,0.03]
[1738180841934,58.14652649,231.54,231.53,0.03]
[1738180842139,58.52299649,231.54,231.53,0.03]
[1738180842432,58.57832649,231.54,231.53,0.03]
[1738180842619,59.08028649,231.54,231.53,0.03]
[1738180842824,59.08028649,231.54,231.38,4.3517]
[1738180842825,0.25098,231.45,231.38,0.03]
[1738180843001,34.36964249,231.39,231.38,0.03]
[1738180843207,59.14652649,231.39,231.38,0.03]
[1738180843705,20.0,231.36,231.35,0.03]
[1738180843913,20.0,231.36,231.17,0.35441551]
[1738180843914,1.0,231.28,231.17,0.35441551]
[1738180844233,20.81084342,231.36,231.16,6.1277]
[1738180844234,34.36964249,231.24,231.16,6.1277]
[1738180844449,0.81089246,231.23,231.16,6.1277]
[1738180845013,0.8110456,231.25,231.17,34.72520566]
[1738180845313,34.36964249,231.33,231.23,34.36964249]
[1738180845517,34.36964249,231.35,231.25,34.36964249]
[1738180845752,0.81077471,231.45,231.24,0.37647]
[1738180845753,34.36964249,231.33,231.24,0.37647]
[1738180845916,34.36964249,231.33,231.17,34.72454988]
[1738180845917,34.36964249,231.25,231.17,34.72454988]
[1738180846124,34.36964249,231.25,231.17,0.35490739]
[1738180846319,34.36964249,231.31,231.21,34.36964249]
[1738180846539,34.36964249,231.33,231.23,34.36964249]
[1738180846846,34.36964249,231.24,231.15,34.36964249]
[1738180847051,34.36964249,231.22,231.08,0.35532691]
[1738180847231,34.36964249,231.22,231.07,11.8191]
[1738180847232,34.36964249,231.22,231.13,34.36964249]
[1738180847423,34.36964249,231.22,231.14,0.3555075]
[1738180847621,34.36964249,231.22,231.14,0.35551937]
[1738180848065,34.36964249,231.22,231.11,35.92334249]
[1738180848066,20.0,231.19,231.16,0.03]
[1738180848253,34.36964249,231.24,231.16,0.03]
[1738180848424,34.36964249,231.18,231.16,0.03]
[1738180848748,34.36964249,231.2,231.16,0.03]
[1738180849324,34.36964249,231.22,231.16,0.03]
[1738180849657,1.0,231.31,231.16,0.03]
[1738180849658,34.36964249,231.2,231.16,0.03]
[1738180849854,34.36964249,231.18,231.16,0.03]
[1738180850353,0.81114663,231.17,231.16,0.03]
[1738180850651,0.81114663,231.17,231.05,45.32924249]
[1738180850652,1.0,231.14,231.06,0.3557899]
[1738180850825,1.0,231.08,230.95,0.1]
[1738180851024,34.36964249,230.97,230.95,0.1]
[1738180851426,0.81180395,231.07,230.95,0.1]
[1738180851427,34.36964249,231.01,230.95,0.1]
[1738180851645,34.36964249,231.01,230.96,0.35683721]
[1738180851854,34.36964249,230.97,230.95,0.1]
[1738180852051,0.81190305,230.96,230.95,0.1]
[1738180852355,1.24480305,230.96,230.95,0.1]
[1738180852558,20.0,230.9,230.74,6.53109768]
[1738180852763,23.776884,230.93,230.75,0.35814084]
[1738180852764,34.36964249,230.79,230.75,0.35814084]
[1738180852953,34.36964249,230.79,230.74,6.53174084]
[1738180853261,0.81246426,230.87,230.79,0.12549]
[1738180853460,7.8,231.02,230.75,0.35785321]
[1738180853461,34.36964249,230.8,230.75,0.35785321]
[1738180853661,34.36964249,230.77,230.74,6.1736]
[1738180853965,34.36964249,230.77,230.65,1.6096]
[1738180853966,54.36964249,230.75,230.65,1.6096]
[1738180854135,54.36964249,230.75,230.63,6.5807]
[1738180854136,20.0,230.7,230.63,6.5807]
[1738180854331,20.0,230.7,230.54,4.3376]
[1738180854332,1.24637134,230.69,230.55,0.35941466]
[1738180854572,1.24637134,230.69,230.55,4.69661466]
[1738180854573,0.81297134,230.69,230.55,4.69661466]
[1738180854875,0.81300824,230.72,230.56,1.0]
[1738180855073,30.0,230.95,230.7,34.36964249]
[1738180855074,34.36964249,230.8,230.7,34.36964249]
[1738180855360,34.36964249,230.88,230.75,0.25098]
[1738180855361,34.36964249,230.84,230.75,0.25098]
[1738180855537,0.81235336,230.83,230.75,0.35817868]
[1738180855732,34.36964249,230.8,230.72,34.36964249]
[1738180855939,34.36964249,230.8,230.73,0.35835086]
[1738180856265,34.36964249,230.8,230.49,27.74202325]
[1738180856266,34.36964249,230.8,230.74,0.35823033]
[1738180856451,34.36964249,230.8,230.71,0.35838857]
[1738180856763,34.36964249,230.84,230.74,34.36964249]
[1738180856963,34.36964249,230.84,230.75,0.35806115]
[1738180857133,34.36964249,230.86,230.76,0.35802791]
[1738180857335,34.36964249,230.88,230.77,0.35782993]
[1738180857659,34.36964249,230.88,230.69,1.0]
[1738180857660,34.36964249,230.78,230.59,34.36964249]
[1738180857829,0.81290715,230.77,230.6,0.35919765]
[1738180858036,34.36964249,230.88,230.6,0.35919765]
[1738180858037,24.278844,230.81,230.6,0.35919765]
[1738180858251,20.0,230.7,230.55,0.3591077]
[1738180858458,20.0,230.7,230.55,4.6964077]
[1738180858459,0.81298315,230.69,230.55,4.6964077]
[1738180858630,0.81298315,230.69,230.54,6.0724]
[1738180858631,20.0,230.64,230.54,6.0724]
[1738180858837,34.36964249,230.57,230.54,6.0724]
[1738180859057,34.36964249,230.55,230.52,0.03]
[1738180859256,34.36964249,230.57,230.52,0.03]
[1738180859467,1.0,230.71,230.52,0.03]
[1738180859468,35.18292868,230.63,230.52,4.3679]
[1738180859767,34.36964249,230.67,230.56,0.50196]
[1738180859958,34.36964249,230.65,230.57,20.35941088]
[1738180860143,34.36964249,230.67,230.57,0.35941088]
[1738180860338,34.36964249,230.65,230.54,34.36964249]
[1738180860564,1.0834,230.75,230.52,4.72755076]
[1738180860565,34.36964249,230.61,230.52,4.72755076]
[1738180860838,34.36964249,230.65,230.54,34.36964249]
[1738180861057,34.36964249,230.69,230.59,0.50196]
[1738180861266,20.0,230.62,230.53,0.35918151]
[1738180861472,34.36964249,230.55,230.52,0.03]
[1738180861681,0.81351587,230.63,230.52,0.03]
[1738180861876,2.5169,230.72,230.53,0.25098]
[1738180861877,0.81326002,230.71,230.53,0.25098]
[1738180862044,0.81326002,230.71,230.54,0.35944325]
[1738180862241,20.0,230.67,230.54,0.35944325]
[1738180862548,0.81326002,230.71,230.52,0.03]
[1738180862549,44.278844,230.61,230.52,0.03]
[1738180862751,68.73928498,230.53,230.52,0.03]
[1738180862939,20.0,230.46,230.32,10.4421]
[1738180863139,34.36964249,230.44,230.33,34.73088334]
[1738180863354,34.36964249,230.42,230.33,0.36124085]
[1738180863563,23.776884,230.49,230.25,34.36964249]
[1738180863564,34.36964249,230.36,230.25,34.36964249]
[1738180863769,1.0,230.51,230.21,6.3062]
[1738180863770,43.776884,230.34,230.23,4.3434]
[1738180863978,20.0,230.29,230.21,6.3062]
[1738180864141,0.8144462,230.28,230.21,6.3062]
[1738180864340,23.776884,230.27,230.21,6.3062]
[1738180864564,0.434,230.37,230.21,6.3062]
[1738180864873,34.36964249,230.3,230.22,0.36196359]
[1738180865055,34.36964249,230.3,230.21,11.01218192]
[1738180865372,0.8142897,230.29,230.21,6.3062]
[1738180865553,0.12549,230.25,230.21,6.3062]
[1738180865753,0.93994576,230.25,230.21,6.3062]
[1738180865962,0.12549,230.25,230.21,6.3062]
[1738180866154,0.25098,230.21,230.12,45.33674249]
[1738180866358,0.25098,230.21,230.13,0.36258518]
[1738180866564,34.36964249,230.19,230.13,0.36258518]
[1738180866753,2.24878736,230.27,230.12,6.98426568]
[1738180866754,34.36964249,230.15,230.12,6.98426568]
[1738180866957,34.36964249,230.13,230.06,0.36288819]
[1738180867181,34.36964249,230.11,230.06,4.70938819]
[1738180867344,34.36964249,230.13,230.06,4.70938819]
[1738180867552,34.36964249,230.11,230.05,0.36287075]
[1738180867753,34.36964249,230.11,230.01,6.5007]
[1738180867754,34.36964249,230.11,230.04,6.37245639]
[1738180868052,34.36964249,230.05,230.01,6.5007]
[1738180868249,34.71404046,230.02,230.0,1.005]
[1738180868464,0.81505527,230.04,229.55,215.74927652]
[1738180868465,6.63522275,230.01,229.55,215.74927652]
[1738180868643,1.0,229.95,229.68,1.5648]
[1738180868847,1.0,229.89,229.68,1.5648]
[1738180869053,0.12549,229.87,229.68,1.5648]
[1738180869265,0.81614485,229.86,229.64,10.4396]
[1738180869465,1.0,229.81,229.64,4.585]
[1738180869673,34.71404046,229.65,229.63,0.26]
[1738180869882,0.81660807,229.64,229.63,0.26]
[1738180870193,34.71404046,229.65,229.63,0.26]
[1738180870475,0.81652741,229.64,229.63,0.26]
[1738180871479,1.0,229.71,229.63,0.26]
[1738180871480,1.0,229.76,229.66,20.0]
[1738180871649,1.0,229.8,229.67,1.5552]
[1738180871845,0.8137019,229.79,229.67,2.20840012]
[1738180872051,1.0,229.89,229.72,1.0]
[1738180872052,0.8137019,229.88,229.72,1.0]
[1738180872278,0.8137019,229.88,229.67,2.20840012]
[1738180872574,34.71404046,229.93,229.81,34.71404046]
[1738180872877,0.8137019,229.92,229.84,55.71404046]
[1738180873067,34.71404046,229.94,229.82,34.71404046]
[1738180873283,34.71404046,229.94,229.85,20.65255101]
[1738180873455,0.8137019,230.03,229.85,0.65255101]
[1738180873456,34.71404046,229.91,229.85,0.65255101]
[1738180873653,34.71404046,229.91,229.76,2.0]
[1738180873654,34.71404046,229.87,229.81,0.65239442]
[1738180873852,34.71404046,229.83,229.81,0.65239442]
[1738180874061,34.71404046,229.83,229.76,0.65262084]
[1738180874267,34.71404046,229.77,229.75,6.3148]
[1738180874468,34.71404046,229.88,229.79,24.3517]
[1738180874690,34.71404046,229.93,229.84,20.0]
[1738180874870,1.0,230.14,229.89,0.25098]
[1738180875073,0.8137019,230.13,229.9,0.65216458]
[1738180875385,1.0,230.11,229.91,0.25098]
[1738180875689,5.82,230.21,229.95,1.0]
[1738180875690,0.8137019,230.1,229.95,1.0]
[1738180875980,34.21404046,230.13,230.04,0.25098]
[1738180876184,16.10477251,230.25,230.05,35.36586593]
[1738180876185,34.71404046,230.15,230.05,35.36586593]
[1738180876557,34.71404046,230.13,230.06,4.59758]